[Event "Titled Tuesday Blitz January 10 Early 2023"]
[White "Putnam, Liam"]
[Black "Jones, Gawain C B"]
[WhiteFideId "30938279"]
[BlackFideId "409561"]
[WhiteElo "2285"]
[BlackElo "2618"]
[Result "1-0"]
[Round "06"]
[TimeControl "180+2"]
[Date "2023.01.10"]
[WhiteClock "0:00:08"]
[BlackClock "0:00:04"]

1. e4 {[%clk 0:02:57]}  e5 {[%clk 0:03:00]} 2. Nf3 {[%clk 0:02:52]}  Nc6 {[%clk 0:03:00]} 3. Bb5 {[%clk 0:02:52]}  a6 {[%clk 0:02:59]} 4. Ba4 {[%clk 0:02:52]}  Nf6 {[%clk 0:03:00]} 5. O-O {[%clk 0:02:51]}  d6 {[%clk 0:03:00]} 6. Re1 {[%clk 0:02:47]}  Bd7 {[%clk 0:02:59]} 7. c3 {[%clk 0:02:47]}  g6 {[%clk 0:02:59]} 8. d4 {[%clk 0:02:47]}  Bg7 {[%clk 0:03:00]} 9. Nbd2 {[%clk 0:02:41]}  O-O {[%clk 0:02:59]} 10. Nf1 {[%clk 0:02:41]}  exd4 {[%clk 0:02:58]} 11. cxd4 {[%clk 0:02:42]}  b5 {[%clk 0:02:56]} 12. Bb3 {[%clk 0:02:33]}  Bg4 {[%clk 0:02:56]} 13. Be3 {[%clk 0:02:23]}  Na5 {[%clk 0:02:50]} 14. e5 {[%clk 0:01:47]}  Nd7 {[%clk 0:02:21]} 15. exd6 {[%clk 0:01:27]}  Nxb3 {[%clk 0:02:21]} 16. dxc7 {[%clk 0:01:27]}  Qxc7 {[%clk 0:02:19]} 17. Qxb3 {[%clk 0:01:12]}  Bxf3 {[%clk 0:02:19]} 18. gxf3 {[%clk 0:01:13]}  Qc6 {[%clk 0:02:04]} 19. Kg2 {[%clk 0:01:07]}  Qd6 {[%clk 0:01:46]} 20. Ng3 {[%clk 0:01:06]}  Nb6 {[%clk 0:01:43]} 21. Ne4 {[%clk 0:01:01]}  Qd8 {[%clk 0:01:31]} 22. Rac1 {[%clk 0:01:00]}  h6 {[%clk 0:01:26]} 23. Rc6 {[%clk 0:00:57]}  Nc4 {[%clk 0:01:24]} 24. Qc3 {[%clk 0:00:46]}  Kh7 {[%clk 0:01:17]} 25. b3 {[%clk 0:00:46]}  Qd7 {[%clk 0:01:07]} 26. Rc5 {[%clk 0:00:31]}  Nb6 {[%clk 0:01:00]} 27. Rc7 {[%clk 0:00:31]}  Qd8 {[%clk 0:00:47]} 28. Qc6 {[%clk 0:00:28]}  Rb8 {[%clk 0:00:45]} 29. Rd1 {[%clk 0:00:26]}  Qd5 {[%clk 0:00:23]} 30. Qxd5 {[%clk 0:00:25]}  Nxd5 {[%clk 0:00:24]} 31. Rc5 {[%clk 0:00:21]}  Rbd8 {[%clk 0:00:23]} 32. a3 {[%clk 0:00:19]}  Rd7 {[%clk 0:00:22]} 33. Rc6 {[%clk 0:00:19]}  Re8 {[%clk 0:00:18]} 34. Rxa6 {[%clk 0:00:17]}  Rc7 {[%clk 0:00:16]} 35. Rd6 {[%clk 0:00:15]}  Nxe3+ {[%clk 0:00:15]} 36. fxe3 {[%clk 0:00:16]}  f5 {[%clk 0:00:15]} 37. Nc5 {[%clk 0:00:15]}  Rxe3 {[%clk 0:00:15]} 38. Rd7 {[%clk 0:00:13]}  Rxd7 {[%clk 0:00:14]} 39. Nxd7 {[%clk 0:00:13]}  Rxb3 {[%clk 0:00:14]} 40. d5 {[%clk 0:00:12]}  Rxa3 {[%clk 0:00:12]} 41. d6 {[%clk 0:00:13]}  Ra8 {[%clk 0:00:11]} 42. Nc5 {[%clk 0:00:10]}  Bf6 {[%clk 0:00:08]} 43. d7 {[%clk 0:00:09]}  Kg8 {[%clk 0:00:06]} 44. Nb7 {[%clk 0:00:07]}  b4 {[%clk 0:00:03]} 45. Rb1 {[%clk 0:00:05]}  Rb8 {[%clk 0:00:03]} 46. Rxb4 {[%clk 0:00:06]}  Kg7 {[%clk 0:00:03]} 47. Rb6 {[%clk 0:00:06]}  Be7 {[%clk 0:00:03]} 48. Re6 {[%clk 0:00:03]}  Kf7 {[%clk 0:00:02]} 49. Rb6 {[%clk 0:00:01]}  Kf8 {[%clk 0:00:02]} 50. Rb5 {[%clk 0:00:02]}  g5 {[%clk 0:00:02]} 51. Rb3 {[%clk 0:00:02]}  Kf7 {[%clk 0:00:02]} 52. Rb5 {[%clk 0:00:02]}  Ke6 {[%clk 0:00:02]} 53. Nc5+ {[%clk 0:00:03]}  Bxc5 {[%clk 0:00:02]} 54. Rxb8 {[%clk 0:00:04]}  Kxd7 {[%clk 0:00:02]} 55. Rh8 {[%clk 0:00:04]}  Ke6 {[%clk 0:00:03]} 56. Rxh6+ {[%clk 0:00:05]}  Ke5 {[%clk 0:00:03]} 57. Rh5 {[%clk 0:00:05]}  Be3 {[%clk 0:00:04]} 58. Rh7 {[%clk 0:00:06]}  Bf4 {[%clk 0:00:04]} 59. h4 {[%clk 0:00:06]}  gxh4 {[%clk 0:00:04]} 60. Rxh4 {[%clk 0:00:07]}  Bg5 {[%clk 0:00:04]} 61. Rh8 {[%clk 0:00:08]}  Be3 {[%clk 0:00:05]} 62. Re8+ {[%clk 0:00:08]}  Kf4 {[%clk 0:00:05]} 63. Rc8 {[%clk 0:00:08]}  Bd4 {[%clk 0:00:05]} 64. Rc4 {[%clk 0:00:09]}  Ke3 {[%clk 0:00:05]} 65. Ra4 {[%clk 0:00:09]}  Be5 {[%clk 0:00:05]} 66. Ra5 {[%clk 0:00:09]}  Kf4 {[%clk 0:00:05]} 67. Kf2 {[%clk 0:00:09]}  Bd4+ {[%clk 0:00:05]} 68. Ke2 {[%clk 0:00:10]}  Bc3 {[%clk 0:00:05]} 69. Ra4+ {[%clk 0:00:10]}  Kg3 {[%clk 0:00:05]} 70. Ra8 {[%clk 0:00:09]}  Kf4 {[%clk 0:00:05]} 71. Rf8 {[%clk 0:00:09]}  Bd4 {[%clk 0:00:05]} 72. Rb8 {[%clk 0:00:06]}  Bc5 {[%clk 0:00:05]} 73. Rb5 {[%clk 0:00:06]}  Ba7 {[%clk 0:00:05]} 74. Rb4+ {[%clk 0:00:05]}  Kg3 {[%clk 0:00:04]} 75. Ra4 {[%clk 0:00:05]}  Bb6 {[%clk 0:00:04]} 76. Ra3 {[%clk 0:00:05]}  Kf4 {[%clk 0:00:04]} 77. Kf1 {[%clk 0:00:05]}  Bc5 {[%clk 0:00:03]} 78. Rb3 {[%clk 0:00:05]}  Be3 {[%clk 0:00:03]} 79. Kg2 {[%clk 0:00:06]}  Ba7 {[%clk 0:00:03]} 80. Ra3 {[%clk 0:00:05]}  Bc5 {[%clk 0:00:03]} 81. Ra4+ {[%clk 0:00:05]}  Kg5 {[%clk 0:00:02]} 82. Kg3 {[%clk 0:00:06]}  Bd6+ {[%clk 0:00:02]} 83. f4+ {[%clk 0:00:07]}  Kf6 {[%clk 0:00:02]} 84. Ra6 {[%clk 0:00:07]}  Ke6 {[%clk 0:00:03]} 85. Kh4 {[%clk 0:00:07]}  Kd5 {[%clk 0:00:01]} 86. Kg5 {[%clk 0:00:07]}  Ke6 {[%clk 0:00:01]} 87. Kg6 {[%clk 0:00:06]}  Ke7 {[%clk 0:00:01]} 88. Kxf5 {[%clk 0:00:06]}  Bc5 {[%clk 0:00:02]} 89. Ke4 {[%clk 0:00:06]}  Kf7 {[%clk 0:00:02]} 90. Rc6 {[%clk 0:00:04]}  Bb4 {[%clk 0:00:03]} 91. Kf5 {[%clk 0:00:05]}  Ba3 {[%clk 0:00:03]} 92. Rc7+ {[%clk 0:00:05]}  Ke8 {[%clk 0:00:03]} 93. Ke6 {[%clk 0:00:05]}  Kd8 {[%clk 0:00:04]} 94. Rd7+ {[%clk 0:00:06]}  Ke8 {[%clk 0:00:04]} 95. f5 {[%clk 0:00:07]}  Bb2 {[%clk 0:00:04]} 96. Re7+ {[%clk 0:00:07]}  Kf8 {[%clk 0:00:05]} 97. f6 {[%clk 0:00:08]}  Ba3 {[%clk 0:00:04]} 98. Ra7 {[%clk 0:00:08]} 1-0


[Site "https://www.chess.com"]

[Event "Titled Tuesday Blitz January 10 Early 2023"]
[White "Zhigalko, Sergei"]
[Black "Horvath, Dominik"]
[WhiteFideId "13502956"]
[BlackFideId "1642561"]
[WhiteElo "2572"]
[BlackElo "2523"]
[Result "1-0"]
[Round "06"]
[TimeControl "180+2"]
[Date "2023.01.10"]
[WhiteClock "0:00:56"]
[BlackClock "0:01:13"]

1. e4 {[%clk 0:03:00]}  c6 {[%clk 0:02:54]} 2. d4 {[%clk 0:03:00]}  d5 {[%clk 0:02:55]} 3. e5 {[%clk 0:03:01]}  c5 {[%clk 0:02:53]} 4. Nf3 {[%clk 0:03:01]}  cxd4 {[%clk 0:02:54]} 5. Qxd4 {[%clk 0:02:59]}  Nc6 {[%clk 0:02:54]} 6. Qf4 {[%clk 0:02:59]}  e6 {[%clk 0:02:54]} 7. Bd3 {[%clk 0:02:59]}  Nb4 {[%clk 0:02:55]} 8. O-O {[%clk 0:02:59]}  Nxd3 {[%clk 0:02:55]} 9. cxd3 {[%clk 0:03:00]}  Ne7 {[%clk 0:02:54]} 10. Nc3 {[%clk 0:03:00]}  Bd7 {[%clk 0:02:54]} 11. Bd2 {[%clk 0:02:58]}  Ng6 {[%clk 0:02:46]} 12. Qg3 {[%clk 0:02:58]}  Be7 {[%clk 0:02:47]} 13. Rfe1 {[%clk 0:02:58]}  O-O {[%clk 0:02:45]} 14. Ne2 {[%clk 0:02:56]}  Rc8 {[%clk 0:02:41]} 15. Ned4 {[%clk 0:02:55]}  Qb6 {[%clk 0:02:39]} 16. Bc3 {[%clk 0:02:54]}  Bb4 {[%clk 0:02:31]} 17. Bxb4 {[%clk 0:02:41]}  Qxb4 {[%clk 0:02:32]} 18. Rab1 {[%clk 0:02:42]}  h6 {[%clk 0:02:30]} 19. h4 {[%clk 0:02:40]}  Kh8 {[%clk 0:02:28]} 20. h5 {[%clk 0:02:37]}  Ne7 {[%clk 0:02:29]} 21. a3 {[%clk 0:02:37]}  Qb6 {[%clk 0:02:29]} 22. Qf4 {[%clk 0:02:33]}  Bb5 {[%clk 0:02:25]} 23. Re3 {[%clk 0:02:32]}  Ba6 {[%clk 0:02:20]} 24. b4 {[%clk 0:02:17]}  Bb5 {[%clk 0:02:16]} 25. Nh4 {[%clk 0:01:55]}  Rc3 {[%clk 0:02:10]} 26. Rb3 {[%clk 0:01:15]}  Rxb3 {[%clk 0:01:55]} 27. Nxb3 {[%clk 0:01:15]}  d4 {[%clk 0:01:52]} 28. Rg3 {[%clk 0:01:09]}  Nc6 {[%clk 0:01:16]} 29. Ng6+ {[%clk 0:01:08]}  Kg8 {[%clk 0:01:12]} 30. Nxf8 {[%clk 0:00:58]}  Kxf8 {[%clk 0:01:13]} 31. Qg4 {[%clk 0:00:56]} 1-0


[Site "https://www.chess.com"]

[Event "Titled Tuesday Blitz January 10 Early 2023"]
[White "Goltsev, Dmitry"]
[Black "Pultinevicius, Paulius"]
[WhiteFideId "24176710"]
[BlackFideId "12809390"]
[WhiteElo "2269"]
[BlackElo "2537"]
[Result "1-0"]
[Round "06"]
[TimeControl "180+2"]
[Date "2023.01.10"]
[WhiteClock "0:00:11"]
[BlackClock "0:00:02"]

1. e4 {[%clk 0:02:49]}  c6 {[%clk 0:03:00]} 2. d4 {[%clk 0:02:49]}  d5 {[%clk 0:03:01]} 3. Nc3 {[%clk 0:02:50]}  dxe4 {[%clk 0:03:01]} 4. Nxe4 {[%clk 0:02:51]}  Nf6 {[%clk 0:03:01]} 5. Nxf6+ {[%clk 0:02:50]}  exf6 {[%clk 0:03:02]} 6. Nf3 {[%clk 0:02:50]}  Bd6 {[%clk 0:03:01]} 7. c3 {[%clk 0:02:49]}  O-O {[%clk 0:03:01]} 8. Bd3 {[%clk 0:02:47]}  Re8+ {[%clk 0:03:01]} 9. Be3 {[%clk 0:02:47]}  Bg4 {[%clk 0:03:01]} 10. h3 {[%clk 0:02:46]}  Bh5 {[%clk 0:03:00]} 11. Qc2 {[%clk 0:02:47]}  Bg6 {[%clk 0:02:58]} 12. O-O-O {[%clk 0:02:47]}  Nd7 {[%clk 0:02:41]} 13. g4 {[%clk 0:02:45]}  Bxd3 {[%clk 0:02:37]} 14. Qxd3 {[%clk 0:02:46]}  b5 {[%clk 0:02:32]} 15. d5 {[%clk 0:02:42]}  c5 {[%clk 0:02:33]} 16. Qxb5 {[%clk 0:02:41]}  Rb8 {[%clk 0:02:33]} 17. Qd3 {[%clk 0:02:38]}  Qa5 {[%clk 0:02:31]} 18. Kb1 {[%clk 0:02:19]}  Nb6 {[%clk 0:02:16]} 19. b3 {[%clk 0:02:12]}  c4 {[%clk 0:02:06]} 20. Bxb6 {[%clk 0:02:11]}  Qxb6 {[%clk 0:01:42]} 21. Qxc4 {[%clk 0:01:58]}  Rec8 {[%clk 0:01:41]} 22. Qd4 {[%clk 0:01:56]}  Bc5 {[%clk 0:01:33]} 23. Qd3 {[%clk 0:01:47]}  a5 {[%clk 0:01:32]} 24. Rd2 {[%clk 0:01:41]}  a4 {[%clk 0:01:30]} 25. b4 {[%clk 0:01:27]}  a3 {[%clk 0:01:30]} 26. Nd4 {[%clk 0:01:22]}  Bxb4 {[%clk 0:00:57]} 27. cxb4 {[%clk 0:01:19]}  Qxb4+ {[%clk 0:00:58]} 28. Nb3 {[%clk 0:01:16]}  Rc3 {[%clk 0:00:57]} 29. Qd4 {[%clk 0:01:13]}  Rc4 {[%clk 0:00:50]} 30. Qe3 {[%clk 0:00:52]}  Rc3 {[%clk 0:00:49]} 31. Rd3 {[%clk 0:00:51]}  Rcc8 {[%clk 0:00:41]} 32. Rc1 {[%clk 0:00:50]}  Re8 {[%clk 0:00:39]} 33. Qd4 {[%clk 0:00:48]}  Qb5 {[%clk 0:00:35]} 34. d6 {[%clk 0:00:45]}  h5 {[%clk 0:00:30]} 35. d7 {[%clk 0:00:43]}  Red8 {[%clk 0:00:29]} 36. Qd5 {[%clk 0:00:42]}  Qa6 {[%clk 0:00:28]} 37. gxh5 {[%clk 0:00:38]}  Rb5 {[%clk 0:00:27]} 38. Qc4 {[%clk 0:00:37]}  Kh7 {[%clk 0:00:20]} 39. Qxf7 {[%clk 0:00:33]}  Re5 {[%clk 0:00:14]} 40. Qg6+ {[%clk 0:00:31]}  Kh8 {[%clk 0:00:14]} 41. h6 {[%clk 0:00:29]}  Re7 {[%clk 0:00:13]} 42. Rg1 {[%clk 0:00:25]}  Kg8 {[%clk 0:00:07]} 43. hxg7 {[%clk 0:00:20]}  Qc4 {[%clk 0:00:07]} 44. Re3 {[%clk 0:00:12]}  Rxe3 {[%clk 0:00:03]} 45. fxe3 {[%clk 0:00:13]}  Qc3 {[%clk 0:00:04]} 46. Qe8+ {[%clk 0:00:12]}  Kh7 {[%clk 0:00:02]} 47. g8=Q+ {[%clk 0:00:11]} 1-0


[Site "https://www.chess.com"]

[Event "Titled Tuesday Blitz January 10 Early 2023"]
[White "Orozbaev, Eldiar"]
[Black "Svane, Frederik"]
[WhiteFideId "13802240"]
[BlackFideId "12923044"]
[WhiteElo "2235"]
[BlackElo "2600"]
[Result "0-1"]
[Round "06"]
[TimeControl "180+2"]
[Date "2023.01.10"]
[WhiteClock "0:00:03"]
[BlackClock "0:00:46"]

1. e4 {[%clk 0:02:55]}  c5 {[%clk 0:03:00]} 2. c3 {[%clk 0:02:55]}  d5 {[%clk 0:03:00]} 3. exd5 {[%clk 0:02:55]}  Qxd5 {[%clk 0:03:01]} 4. Nf3 {[%clk 0:02:55]}  Nf6 {[%clk 0:03:01]} 5. d4 {[%clk 0:02:55]}  e6 {[%clk 0:03:02]} 6. Be2 {[%clk 0:02:55]}  Be7 {[%clk 0:03:02]} 7. O-O {[%clk 0:02:55]}  O-O {[%clk 0:03:03]} 8. Be3 {[%clk 0:02:56]}  cxd4 {[%clk 0:03:02]} 9. Nxd4 {[%clk 0:02:56]}  Rd8 {[%clk 0:02:47]} 10. Qb3 {[%clk 0:02:47]}  Nc6 {[%clk 0:02:26]} 11. Bf3 {[%clk 0:02:31]}  Qxb3 {[%clk 0:02:22]} 12. axb3 {[%clk 0:02:32]}  Ne5 {[%clk 0:02:22]} 13. Nd2 {[%clk 0:02:28]}  Nxf3+ {[%clk 0:02:22]} 14. N2xf3 {[%clk 0:02:29]}  Bd7 {[%clk 0:02:20]} 15. Ne5 {[%clk 0:02:28]}  Be8 {[%clk 0:02:20]} 16. Rfd1 {[%clk 0:02:24]}  Nd5 {[%clk 0:02:19]} 17. Nc4 {[%clk 0:02:18]}  Nxe3 {[%clk 0:02:16]} 18. Nxe3 {[%clk 0:02:17]}  g6 {[%clk 0:02:07]} 19. Kf1 {[%clk 0:02:15]}  Bc5 {[%clk 0:01:51]} 20. Nec2 {[%clk 0:02:04]}  e5 {[%clk 0:01:43]} 21. Nf3 {[%clk 0:02:01]}  f6 {[%clk 0:01:43]} 22. Nd2 {[%clk 0:01:52]}  Bc6 {[%clk 0:01:40]} 23. f3 {[%clk 0:01:46]}  Kf7 {[%clk 0:01:40]} 24. Ne4 {[%clk 0:01:44]}  Be7 {[%clk 0:01:38]} 25. Ke2 {[%clk 0:01:42]}  f5 {[%clk 0:01:37]} 26. Nf2 {[%clk 0:01:42]}  Rxd1 {[%clk 0:01:32]} 27. Rxd1 {[%clk 0:01:42]}  a5 {[%clk 0:01:33]} 28. Nd3 {[%clk 0:01:42]}  Kf6 {[%clk 0:01:33]} 29. Ne3 {[%clk 0:01:42]}  Rd8 {[%clk 0:01:19]} 30. f4 {[%clk 0:01:28]}  exf4 {[%clk 0:01:14]} 31. Nxf4 {[%clk 0:01:27]}  Rxd1 {[%clk 0:01:14]} 32. Kxd1 {[%clk 0:01:24]}  Bd6 {[%clk 0:01:14]} 33. Nfd5+ {[%clk 0:01:22]}  Ke6 {[%clk 0:01:12]} 34. c4 {[%clk 0:01:10]}  f4 {[%clk 0:01:12]} 35. Ng4 {[%clk 0:01:06]}  Bxd5 {[%clk 0:01:12]} 36. cxd5+ {[%clk 0:01:06]}  Kxd5 {[%clk 0:01:13]} 37. Nf6+ {[%clk 0:00:28]}  Ke5 {[%clk 0:01:14]} 38. Nd7+ {[%clk 0:00:23]}  Kd4 {[%clk 0:01:07]} 39. Ke2 {[%clk 0:00:19]}  b5 {[%clk 0:01:03]} 40. Nf6 {[%clk 0:00:18]}  Ke5 {[%clk 0:00:50]} 41. Nd7+ {[%clk 0:00:04]}  Ke6 {[%clk 0:00:50]} 42. Nb6 {[%clk 0:00:04]}  Bc5 {[%clk 0:00:49]} 43. Na8 {[%clk 0:00:02]}  Kd7 {[%clk 0:00:49]} 44. Kf3 {[%clk 0:00:02]}  Kc6 {[%clk 0:00:49]} 45. Ke4 {[%clk 0:00:02]}  Kb7 {[%clk 0:00:47]} 46. Kd5 {[%clk 0:00:03]}  Be3 {[%clk 0:00:46]} 0-1


[Site "https://www.chess.com"]

[Event "Titled Tuesday Blitz January 10 Early 2023"]
[White "Baskakov, Egor"]
[Black "Rakhmatullaev, Almas"]
[WhiteFideId "24197866"]
[BlackFideId "14205793"]
[WhiteElo "2215"]
[BlackElo "2275"]
[Result "1/2-1/2"]
[Round "06"]
[TimeControl "180+2"]
[Date "2023.01.10"]
[WhiteClock "0:00:06"]
[BlackClock "0:00:09"]

1. e4 {[%clk 0:03:00]}  e5 {[%clk 0:03:00]} 2. Nc3 {[%clk 0:03:00]}  Nf6 {[%clk 0:02:59]} 3. g3 {[%clk 0:03:00]}  Bb4 {[%clk 0:02:52]} 4. Bg2 {[%clk 0:03:00]}  d6 {[%clk 0:02:47]} 5. h3 {[%clk 0:02:59]}  O-O {[%clk 0:02:42]} 6. Nge2 {[%clk 0:02:59]}  Nc6 {[%clk 0:02:37]} 7. O-O {[%clk 0:02:59]}  Nd4 {[%clk 0:02:31]} 8. d3 {[%clk 0:02:53]}  Nxe2+ {[%clk 0:02:24]} 9. Qxe2 {[%clk 0:02:51]}  c6 {[%clk 0:02:20]} 10. Kh2 {[%clk 0:02:49]}  Re8 {[%clk 0:02:15]} 11. f4 {[%clk 0:02:39]}  exf4 {[%clk 0:02:04]} 12. Bxf4 {[%clk 0:02:40]}  h6 {[%clk 0:01:36]} 13. a3 {[%clk 0:02:29]}  Bc5 {[%clk 0:01:29]} 14. Qd2 {[%clk 0:02:24]}  Bd4 {[%clk 0:01:18]} 15. Rae1 {[%clk 0:02:18]}  Nh5 {[%clk 0:01:08]} 16. Be3 {[%clk 0:01:49]}  Be5 {[%clk 0:01:00]} 17. Ne2 {[%clk 0:01:48]}  Qh4 {[%clk 0:00:37]} 18. Bf2 {[%clk 0:01:47]}  Qg5 {[%clk 0:00:30]} 19. Qb4 {[%clk 0:01:30]}  a5 {[%clk 0:00:23]} 20. Qb6 {[%clk 0:01:26]}  Qd8 {[%clk 0:00:18]} 21. Qb3 {[%clk 0:01:21]}  a4 {[%clk 0:00:14]} 22. Qb4 {[%clk 0:01:16]}  c5 {[%clk 0:00:15]} 23. Qd2 {[%clk 0:01:15]}  Qg5 {[%clk 0:00:13]} 24. Qxg5 {[%clk 0:01:12]}  hxg5 {[%clk 0:00:14]} 25. c3 {[%clk 0:01:08]}  Bd7 {[%clk 0:00:10]} 26. d4 {[%clk 0:01:08]}  cxd4 {[%clk 0:00:11]} 27. cxd4 {[%clk 0:01:07]}  Bf6 {[%clk 0:00:12]} 28. Nc3 {[%clk 0:01:05]}  Bc6 {[%clk 0:00:06]} 29. Rd1 {[%clk 0:00:53]}  g6 {[%clk 0:00:05]} 30. Rfe1 {[%clk 0:00:53]}  Bh8 {[%clk 0:00:05]} 31. Be3 {[%clk 0:00:49]}  f6 {[%clk 0:00:03]} 32. Bf2 {[%clk 0:00:49]}  f5 {[%clk 0:00:04]} 33. exf5 {[%clk 0:00:45]}  gxf5 {[%clk 0:00:04]} 34. Nd5 {[%clk 0:00:44]}  Nf6 {[%clk 0:00:04]} 35. Ne7+ {[%clk 0:00:41]}  Kf7 {[%clk 0:00:04]} 36. Nxf5 {[%clk 0:00:38]}  Bxg2 {[%clk 0:00:05]} 37. Nxd6+ {[%clk 0:00:37]}  Kg6 {[%clk 0:00:05]} 38. Nxe8 {[%clk 0:00:38]}  Bf3 {[%clk 0:00:05]} 39. Nxf6 {[%clk 0:00:31]}  Bxd1 {[%clk 0:00:05]} 40. Rxd1 {[%clk 0:00:28]}  Bxf6 {[%clk 0:00:05]} 41. Rd2 {[%clk 0:00:28]}  Kf5 {[%clk 0:00:05]} 42. Kg2 {[%clk 0:00:28]}  Ke4 {[%clk 0:00:06]} 43. d5 {[%clk 0:00:28]}  Rd8 {[%clk 0:00:05]} 44. d6 {[%clk 0:00:27]}  Rd7 {[%clk 0:00:05]} 45. Bc5 {[%clk 0:00:23]}  Be5 {[%clk 0:00:05]} 46. Bb4 {[%clk 0:00:21]}  b5 {[%clk 0:00:04]} 47. Re2+ {[%clk 0:00:20]}  Kd5 {[%clk 0:00:04]} 48. h4 {[%clk 0:00:20]}  gxh4 {[%clk 0:00:05]} 49. gxh4 {[%clk 0:00:21]}  Rg7+ {[%clk 0:00:05]} 50. Kf3 {[%clk 0:00:20]}  Rg3+ {[%clk 0:00:04]} 51. Kf2 {[%clk 0:00:21]}  Rg8 {[%clk 0:00:03]} 52. d7 {[%clk 0:00:19]}  Bd4+ {[%clk 0:00:03]} 53. Kf3 {[%clk 0:00:19]}  Rd8 {[%clk 0:00:04]} 54. Rd2 {[%clk 0:00:19]}  Kc4 {[%clk 0:00:03]} 55. h5 {[%clk 0:00:17]}  Rxd7 {[%clk 0:00:03]} 56. Kg4 {[%clk 0:00:16]}  Rg7+ {[%clk 0:00:03]} 57. Kf5 {[%clk 0:00:16]}  Rf7+ {[%clk 0:00:04]} 58. Kg6 {[%clk 0:00:16]}  Rf6+ {[%clk 0:00:05]} 59. Kg5 {[%clk 0:00:16]}  Re6 {[%clk 0:00:05]} 60. Rg2 {[%clk 0:00:15]}  Be3+ {[%clk 0:00:04]} 61. Kf5 {[%clk 0:00:15]}  Re8 {[%clk 0:00:04]} 62. Bc3 {[%clk 0:00:14]}  Kb3 {[%clk 0:00:04]} 63. Rh2 {[%clk 0:00:13]}  Rf8+ {[%clk 0:00:04]} 64. Ke6 {[%clk 0:00:12]}  Re8+ {[%clk 0:00:04]} 65. Kf7 {[%clk 0:00:13]}  Rc8 {[%clk 0:00:05]} 66. h6 {[%clk 0:00:13]}  Rc7+ {[%clk 0:00:05]} 67. Ke6 {[%clk 0:00:13]}  b4 {[%clk 0:00:04]} 68. Bxb4 {[%clk 0:00:12]}  Rh7 {[%clk 0:00:04]} 69. Bf8 {[%clk 0:00:11]}  Bd4 {[%clk 0:00:05]} 70. Kf5 {[%clk 0:00:07]}  Bxb2 {[%clk 0:00:05]} 71. Kg6 {[%clk 0:00:08]}  Rb7 {[%clk 0:00:04]} 72. Bg7 {[%clk 0:00:08]}  Bxg7 {[%clk 0:00:03]} 73. hxg7 {[%clk 0:00:08]}  Rxg7+ {[%clk 0:00:04]} 74. Kxg7 {[%clk 0:00:08]}  Kxa3 {[%clk 0:00:05]} 75. Kf6 {[%clk 0:00:08]}  Kb3 {[%clk 0:00:06]} 76. Ke5 {[%clk 0:00:09]}  a3 {[%clk 0:00:06]} 77. Kd4 {[%clk 0:00:09]}  a2 {[%clk 0:00:07]} 78. Rh3+ {[%clk 0:00:07]}  Kb2 {[%clk 0:00:08]} 79. Rh2+ {[%clk 0:00:08]}  Kb1 {[%clk 0:00:08]} 80. Rh1+ {[%clk 0:00:06]}  Kb2 {[%clk 0:00:08]} 81. Rg1 {[%clk 0:00:06]}  a1=Q {[%clk 0:00:08]} 82. Rxa1 {[%clk 0:00:06]}  Kxa1 {[%clk 0:00:09]} 1/2-1/2


[Site "https://www.chess.com"]

[Event "Titled Tuesday Blitz January 10 Early 2023"]
[White "Rozman, Levy"]
[Black "Arabidze, Meri"]
[WhiteFideId "2039877"]
[BlackFideId "13604040"]
[WhiteElo "2322"]
[BlackElo "2441"]
[Result "1-0"]
[Round "06"]
[TimeControl "180+2"]
[Date "2023.01.10"]
[WhiteClock "0:00:06"]
[BlackClock "0:00:06"]

1. d4 {[%clk 0:03:00]}  f5 {[%clk 0:02:59]} 2. Qd3 {[%clk 0:03:00]}  d5 {[%clk 0:02:58]} 3. g4 {[%clk 0:03:00]}  fxg4 {[%clk 0:02:55]} 4. h3 {[%clk 0:03:00]}  Nf6 {[%clk 0:02:54]} 5. hxg4 {[%clk 0:03:00]}  Bxg4 {[%clk 0:02:54]} 6. f3 {[%clk 0:02:58]}  Be6 {[%clk 0:02:50]} 7. Nh3 {[%clk 0:02:53]}  Nc6 {[%clk 0:02:48]} 8. Ng5 {[%clk 0:02:50]}  Qd7 {[%clk 0:02:40]} 9. Nc3 {[%clk 0:02:50]}  Nb4 {[%clk 0:02:05]} 10. Qd1 {[%clk 0:02:39]}  Bf5 {[%clk 0:02:03]} 11. e4 {[%clk 0:02:36]}  dxe4 {[%clk 0:02:04]} 12. fxe4 {[%clk 0:02:30]}  Bg4 {[%clk 0:02:04]} 13. Be2 {[%clk 0:02:18]}  Bxe2 {[%clk 0:02:03]} 14. Qxe2 {[%clk 0:02:01]}  e6 {[%clk 0:01:48]} 15. Be3 {[%clk 0:01:55]}  O-O-O {[%clk 0:01:47]} 16. O-O-O {[%clk 0:01:51]}  h6 {[%clk 0:01:47]} 17. a3 {[%clk 0:01:46]}  Nc6 {[%clk 0:01:12]} 18. d5 {[%clk 0:01:45]}  exd5 {[%clk 0:01:13]} 19. exd5 {[%clk 0:01:39]}  Ne5 {[%clk 0:01:06]} 20. Bxa7 {[%clk 0:01:26]}  Bd6 {[%clk 0:00:49]} 21. Ne6 {[%clk 0:01:24]}  Rde8 {[%clk 0:00:49]} 22. Nc5 {[%clk 0:00:59]}  Qg4 {[%clk 0:00:36]} 23. Qb5 {[%clk 0:00:56]}  Bxc5 {[%clk 0:00:36]} 24. Bxc5 {[%clk 0:00:56]}  Qc4 {[%clk 0:00:35]} 25. Qa5 {[%clk 0:00:49]}  b6 {[%clk 0:00:24]} 26. Bxb6 {[%clk 0:00:37]}  cxb6 {[%clk 0:00:25]} 27. Qxb6 {[%clk 0:00:34]}  Nfd7 {[%clk 0:00:26]} 28. Qa7 {[%clk 0:00:26]}  Qc7 {[%clk 0:00:25]} 29. Qa6+ {[%clk 0:00:24]}  Qb7 {[%clk 0:00:25]} 30. Qa4 {[%clk 0:00:17]}  Kb8 {[%clk 0:00:24]} 31. Rh4 {[%clk 0:00:16]}  Nb6 {[%clk 0:00:22]} 32. Qb5 {[%clk 0:00:13]}  Nbc4 {[%clk 0:00:19]} 33. b3 {[%clk 0:00:08]}  Qxb5 {[%clk 0:00:18]} 34. Nxb5 {[%clk 0:00:09]}  Ne3 {[%clk 0:00:18]} 35. Rdh1 {[%clk 0:00:03]}  Nf3 {[%clk 0:00:17]} 36. Rb4 {[%clk 0:00:03]}  Nxd5 {[%clk 0:00:16]} 37. Ra4 {[%clk 0:00:03]}  Nb6 {[%clk 0:00:16]} 38. Ra6 {[%clk 0:00:03]}  Kb7 {[%clk 0:00:15]} 39. Ra7+ {[%clk 0:00:04]}  Kc6 {[%clk 0:00:16]} 40. a4 {[%clk 0:00:05]}  Re1+ {[%clk 0:00:12]} 41. Rxe1 {[%clk 0:00:04]}  Nxe1 {[%clk 0:00:13]} 42. c4 {[%clk 0:00:03]}  Rc8 {[%clk 0:00:12]} 43. Rxg7 {[%clk 0:00:03]}  Nd3+ {[%clk 0:00:12]} 44. Kd2 {[%clk 0:00:03]}  Ne5 {[%clk 0:00:11]} 45. Na7+ {[%clk 0:00:03]}  Kc5 {[%clk 0:00:10]} 46. Nxc8 {[%clk 0:00:04]}  Nxc8 {[%clk 0:00:09]} 47. Rc7+ {[%clk 0:00:04]}  Kb4 {[%clk 0:00:10]} 48. Rxc8 {[%clk 0:00:05]}  Kxb3 {[%clk 0:00:10]} 49. c5 {[%clk 0:00:05]}  Kxa4 {[%clk 0:00:10]} 50. Rb8 {[%clk 0:00:05]}  Nc4+ {[%clk 0:00:09]} 51. Kc3 {[%clk 0:00:05]}  Ne5 {[%clk 0:00:09]} 52. Rb1 {[%clk 0:00:04]}  h5 {[%clk 0:00:08]} 53. Kd4 {[%clk 0:00:05]}  Nc6+ {[%clk 0:00:08]} 54. Kd5 {[%clk 0:00:05]}  Na5 {[%clk 0:00:06]} 55. Ra1+ {[%clk 0:00:05]}  Kb5 {[%clk 0:00:06]} 56. Rxa5+ {[%clk 0:00:05]}  Kxa5 {[%clk 0:00:07]} 57. c6 {[%clk 0:00:06]}  h4 {[%clk 0:00:06]} 58. c7 {[%clk 0:00:06]} 1-0


[Site "https://www.chess.com"]